fUST/lending_fUST_20241227
["ID","MTS","AMOUNT","RATE_DAILY","PERIOD"]
[346737497,1735257048643,-795.49,0.00016476,2]
[346737498,1735257048653,-500.0,0.00016476,2]
[346737499,1735257048663,-514.98,0.00016476,2]
[346737500,1735257048673,-608.66,0.00016476,2]
[346737501,1735257048683,-245.25,0.00016476,2]
[346737502,1735257048692,-515.21,0.00016476,2]
[346737503,1735257048702,-1460.35,0.00016476,2]
[346737504,1735257048712,-2557.38,0.00016476,2]
[346737505,1735257048722,-858.73,0.00016476,2]
[346737506,1735257048731,-500.0,0.00016476,2]
[346737507,1735257048741,-761.57,0.00016476,2]
[346737508,1735257048751,-1024.08,0.00016476,2]
[346737509,1735257048760,-1222.55,0.00016476,2]
[346737510,1735257048770,-1378.02,0.00016476,2]
[346737511,1735257048779,-32121.79,0.00016476,2]
[346737512,1735257048789,-1345.48,0.00016476,2]
[346737513,1735257048801,-500.0,0.00016476,2]
[346737514,1735257048817,-151.0,0.00016476,2]
[346737515,1735257048829,-151.0,0.00016476,2]
[346737516,1735257048839,-642.05,0.00016476,2]
[346737517,1735257048848,-807.26,0.00016476,2]
[346737518,1735257048859,-500.0,0.00016476,2]
[346737519,1735257048869,-548.55,0.00016478,2]
[346737520,1735257048881,-7662.52,0.00016478,2]
[346737521,1735257048890,-5037.97,0.00016478,2]
[346737522,1735257048900,-1461.89,0.00016478,2]
[346737523,1735257048909,-840.18,0.00016478,2]
[346737524,1735257048919,-151.0,0.00016479,2]
[346737525,1735257048928,-255.356093,0.00016479,2]
[346737526,1735257048938,-500.0,0.00016516,2]
[346737527,1735257048948,-500.0,0.00016516,2]
[346737528,1735257048958,-500.0,0.00016516,2]
[346737529,1735257048967,-230.22,0.00016516,2]
[346737530,1735257048977,-293.03,0.00016516,2]
[346737531,1735257048986,-601.84,0.00016516,2]
[346737532,1735257048997,-1323.91,0.00016516,2]
[346737533,1735257049006,-879.78,0.00016516,2]
[346737534,1735257049016,-500.0,0.00016516,2]
[346737535,1735257049025,-1278.32,0.00016516,2]
[346737536,1735257049035,-753.38,0.00016516,2]
[346737537,1735257049045,-630.5,0.00016516,2]
[346737538,1735257049054,-500.0,0.00016516,2]
[346737539,1735257049064,-500.0,0.00016516,2]
[346737540,1735257049074,-500.0,0.00016516,2]
[346737541,1735257049083,-619.68,0.00016516,2]
[346737542,1735257049093,-166.630106,0.00016516,2]
[346737543,1735257049103,-166.630106,0.00016516,2]
[346737544,1735257049113,-259.024428,0.00016516,2]
[346737545,1735257049122,-500.0,0.00016516,2]
[346737546,1735257049132,-500.0,0.00016516,2]
[346737547,1735257049142,-1729.64,0.00016516,2]
[346737548,1735257049151,-157.67,0.00016516,2]
[346737549,1735257049160,-893.36,0.00016516,2]
[346737550,1735257049170,-4879.32,0.00016516,2]
[346737551,1735257049180,-439.3,0.00016516,2]
[346737552,1735257049189,-500.0,0.00016516,2]
[346737553,1735257049199,-1299.6,0.00016516,2]
[346737554,1735257049208,-500.0,0.00016517,2]
[346737555,1735257049218,-500.0,0.00016517,2]
[346737556,1735257049227,-500.0,0.00016517,2]
[346737557,1735257049236,-500.0,0.00016517,2]
[346737558,1735257049246,-540.71,0.00016517,2]
[346737559,1735257049256,-500.0,0.00016517,2]
[346737560,1735257049266,-505.25555965,0.00016517,2]
[346737561,1735257049275,-500.0,0.00016517,2]
[346737562,1735257049285,-500.0,0.00016517,2]
[346737563,1735257049295,-500.0,0.00016517,2]
[346737564,1735257049304,-500.0,0.00016517,2]
[346737565,1735257049314,-500.0,0.00016517,2]
[346737566,1735257049324,-500.0,0.00016517,2]
[346737567,1735257049333,-500.0,0.00016517,2]
[346737568,1735257049343,-500.0,0.00016517,2]
[346737569,1735257049353,-500.0,0.00016517,2]
[346737570,1735257049363,-151.0,0.00016517,2]
[346737571,1735257049372,-500.0,0.00016517,2]
[346737572,1735257049381,-500.0,0.00016517,2]
[346737573,1735257049391,-500.0,0.00016517,2]
[346737574,1735257049401,-500.0,0.00016517,2]
[346737575,1735257049411,-500.0,0.00016517,2]
[346737576,1735257049421,-500.0,0.00016517,2]
[346737577,1735257049430,-559.57448212,0.00016517,2]
[346737578,1735257049440,-500.0,0.00016517,2]
[346737579,1735257049450,-500.0,0.00016517,2]
[346737580,1735257049459,-500.0,0.00016517,2]
[346737581,1735257049469,-503.03649116,0.00016517,2]
[346737582,1735257049478,-500.0,0.00016517,2]
[346737583,1735257049487,-500.0,0.00016517,2]
[346737584,1735257049497,-500.0,0.00016517,2]
[346737585,1735257049506,-500.0,0.00016517,2]
[346737586,1735257049516,-500.0,0.00016517,2]
[346737587,1735257049526,-500.0,0.00016517,2]
[346737588,1735257049535,-500.0,0.00016517,2]
[346737589,1735257049545,-500.0,0.00016517,2]
[346737590,1735257049555,-500.0,0.00016517,2]
[346737591,1735257049564,-500.0,0.00016517,2]
[346737592,1735257049574,-500.0,0.00016517,2]
[346737593,1735257049583,-500.0,0.00016517,2]
[346737594,1735257049594,-500.0,0.00016517,2]
[346737595,1735257049604,-351.594105,0.00016517,2]
[346737596,1735257049613,-351.594105,0.00016517,2]
[346737597,1735257049623,-554.28,0.00016517,2]
[346737598,1735257049632,-500.0,0.00016517,2]
[346737599,1735257049641,-500.0,0.00016517,2]
[346737600,1735257049651,-500.0,0.00016517,2]
[346737601,1735257049660,-773.29,0.00016517,2]
[346737602,1735257049670,-500.0,0.00016517,2]
[346737603,1735257049679,-1394.96,0.00016517,2]
[346737604,1735257049688,-500.0,0.00016517,2]
[346737605,1735257049698,-173.400883,0.00016517,2]
[346737606,1735257049707,-173.400883,0.00016517,2]
[346737607,1735257049717,-283.67510786,0.00016517,2]
[346737608,1735257049726,-151.0,0.00016517,2]
[346737609,1735257049735,-151.0,0.00016517,2]
[346737610,1735257049745,-500.0,0.00016518,2]
[346737611,1735257049754,-500.0,0.00016518,2]
[346737612,1735257049764,-263.164565,0.00016518,2]
[346737613,1735257049774,-263.164565,0.00016518,2]
[346737614,1735257049783,-151.0,0.00016518,2]
[346737615,1735257049793,-222.041612,0.00016518,2]
[346737616,1735257049804,-500.0,0.00016518,2]
[346737617,1735257049814,-222.041612,0.00016518,2]
[346737618,1735257049823,-500.0,0.00016518,2]
[346737619,1735257049832,-500.0,0.00016518,2]
[346737620,1735257049842,-166.733138,0.00016518,2]
[346737621,1735257049852,-526.22,0.00016518,2]
[346737622,1735257049861,-166.733138,0.00016518,2]
[346737623,1735257049870,-500.0,0.00016518,2]
[346737624,1735257049881,-151.0,0.00016518,2]
[346737625,1735257049891,-151.0,0.00016518,2]
[346737626,1735257049900,-151.0,0.00016518,2]
[346737627,1735257049909,-500.0,0.00016518,2]
[346737628,1735257049919,-151.0,0.00016518,2]
[346737629,1735257049928,-500.0,0.00016518,2]
[346737630,1735257049937,-651.15,0.00016518,2]
[346737631,1735257049947,-500.0,0.00016519,2]
[346737632,1735257049956,-500.0,0.00016519,2]
[346737633,1735257049966,-10460.77370648,0.00016572,2]
[346737634,1735257049975,-11319.74,0.00016596,2]
[346737635,1735257049985,-500.0,0.00016596,2]
[346737636,1735257049994,-516.78,0.00016596,2]
[346737637,1735257050004,-151.0,0.00016598,2]
[346737638,1735257050013,-151.0,0.00016598,2]
[346737639,1735257050023,-500.0,0.00016598,2]
[346737640,1735257050032,-8951.35,0.00016598,2]
[346737641,1735257050041,-151.0,0.000166,2]
[346737642,1735257050051,-151.0,0.000166,2]
[346737643,1735257050060,-166.630106,0.00016658,2]
[346737644,1735257050070,-166.630106,0.00016658,2]
[346737645,1735257050080,-351.594105,0.00016658,2]
[346737646,1735257050089,-351.594105,0.00016658,2]
[346737647,1735257050099,-173.400883,0.00016658,2]
[346737648,1735257050109,-173.400883,0.00016658,2]
[346737649,1735257050119,-696.18691146,0.00016729,2]
[346737650,1735257050128,-661.02758787,0.00016731,2]
[346737651,1735257050138,-500.0,0.00016738,2]
[346737652,1735257050148,-1212.15,0.00016738,2]
[346737653,1735257050158,-500.0,0.00016738,2]
[346737654,1735257050167,-500.0,0.00016739,2]
[346737655,1735257050177,-153.4414212,0.0001674,2]
[346737656,1735257050186,-214.2328397,0.0001674,2]
[346737657,1735257050196,-153.4414212,0.0001674,2]
[346737658,1735257050205,-151.0,0.0001675,2]
[346737659,1735257050215,-219.953452,0.0001675,2]
[346737660,1735257050224,-700.36,0.0001675,2]
[346737661,1735257050234,-500.0,0.0001675,2]
[346737662,1735257050243,-825.92,0.0001675,2]
[346737663,1735257050252,-263.164565,0.0001675,2]
[346737664,1735257050262,-263.164565,0.0001675,2]
[346737665,1735257050271,-151.0,0.0001675,2]
[346737666,1735257050281,-1254.73,0.0001675,2]
[346737667,1735257050290,-222.041612,0.0001675,2]
[346737668,1735257050299,-222.041612,0.0001675,2]
[346737669,1735257050308,-500.0,0.0001675,2]
[346737670,1735257050318,-1089.72,0.0001675,2]
[346737671,1735257050327,-530.76,0.0001675,2]
[346737672,1735257050336,-166.733138,0.0001675,2]
[346737673,1735257050346,-166.733138,0.0001675,2]
[346737674,1735257050355,-500.0,0.0001675,2]
[346737675,1735257050364,-151.0,0.0001675,2]
[346737676,1735257050374,-151.0,0.0001675,2]
[346737677,1735257050383,-151.0,0.0001675,2]
[346737678,1735257050394,-500.0,0.0001675,2]
[346737679,1735257050403,-1057.53,0.0001675,2]
[346737680,1735257050417,-351.594105,0.0001675,2]
[346737681,1735257050426,-795.49,0.0001675,2]
[346737682,1735257050435,-351.594105,0.0001675,2]
[346737683,1735257050444,-500.0,0.0001675,2]
[346737684,1735257050454,-514.98,0.0001675,2]
[346737685,1735257050465,-608.66,0.0001675,2]
[346737686,1735257050475,-515.21,0.0001675,2]
[346737687,1735257050485,-1460.35,0.0001675,2]
[346737688,1735257050494,-2557.38,0.0001675,2]
[346737689,1735257050504,-858.73,0.0001675,2]
[346737690,1735257050513,-500.0,0.0001675,2]
[346737691,1735257050523,-761.57,0.0001675,2]
[346737692,1735257050532,-1024.08,0.0001675,2]
[346737693,1735257050542,-173.400883,0.0001675,2]
[346737694,1735257050551,-1222.55,0.0001675,2]
[346737695,1735257050637,-173.400883,0.0001675,2]
[346737696,1735257050647,-1378.02,0.0001675,2]
[346737697,1735257050657,-32121.79,0.0001675,2]
[346737698,1735257050667,-1345.48,0.0001675,2]
[346737699,1735257050677,-500.0,0.0001675,2]
[346737700,1735257050687,-151.0,0.0001675,2]
[346737701,1735257050697,-181.749138,0.0001675,2]
[346737702,1735257050707,-642.05,0.0001675,2]
[346737703,1735257050716,-807.26,0.0001675,2]
[346737704,1735257050727,-500.0,0.0001675,2]
[346737705,1735257050736,-548.55,0.00016752,2]
[346737706,1735257050747,-7662.52,0.00016752,2]
[346737707,1735257050756,-5037.97,0.00016752,2]
[346737708,1735257050766,-1461.89,0.00016752,2]
[346737709,1735257050776,-840.18,0.00016752,2]
[346737710,1735257050786,-228.7291852,0.00016754,2]
[346737711,1735257050795,-403.36942045,0.0001679,2]
[346737712,1735257050804,-500.0,0.0001679,2]
[346737713,1735257050814,-500.0,0.0001679,2]
[346737714,1735257050823,-601.84,0.0001679,2]
[346737715,1735257050832,-1323.91,0.0001679,2]
[346737716,1735257050841,-466.237,0.0001679,2]
[346737717,1735257050850,-879.78,0.0001679,2]
[346737718,1735257050859,-500.0,0.0001679,2]
[346737719,1735257050869,-1278.32,0.0001679,2]
[346737720,1735257050879,-753.38,0.0001679,2]
[346737721,1735257050889,-630.5,0.0001679,2]
[346737722,1735257050899,-642.14,0.0001679,2]
[346737723,1735257050908,-500.0,0.0001679,2]
[346737724,1735257050918,-500.0,0.0001679,2]
[346737725,1735257050928,-619.68,0.0001679,2]
[346737726,1735257050937,-500.0,0.0001679,2]
[346737727,1735257050947,-500.0,0.0001679,2]
[346737728,1735257050957,-1729.64,0.0001679,2]
[346737729,1735257050966,-893.36,0.0001679,2]
[346737730,1735257050976,-4879.32,0.0001679,2]
[346737731,1735257050985,-151.0,0.0001679,2]
[346737732,1735257050995,-500.0,0.0001679,2]
[346737733,1735257051004,-1299.6,0.0001679,2]
[346737734,1735257051013,-500.0,0.00016791,2]
[346737735,1735257051022,-540.71,0.00016791,2]
[346737736,1735257051032,-500.0,0.00016791,2]
[346737737,1735257051041,-151.0,0.00016791,2]
[346737738,1735257051050,-500.0,0.00016791,2]
[346737739,1735257051062,-500.0,0.00016791,2]
[346737740,1735257051071,-500.0,0.00016791,2]
[346737741,1735257051080,-245.81285655,0.00016791,2]
[346737742,1735257051090,-500.0,0.00016791,2]
[346737743,1735257051099,-411.54,0.00016791,2]
[346737744,1735257051109,-500.0,0.00016791,2]
[346737745,1735257051119,-500.0,0.00016791,2]
[346737746,1735257051128,-166.630106,0.00016791,2]
[346737747,1735257051138,-166.630106,0.00016791,2]
[346737748,1735257051147,-351.594105,0.00016791,2]
[346737749,1735257051156,-351.594105,0.00016791,2]
[346737750,1735257051166,-554.28,0.00016791,2]
[346737751,1735257051175,-500.0,0.00016791,2]
[346737752,1735257051186,-500.0,0.00016791,2]
[346737753,1735257051195,-500.0,0.00016791,2]
[346737754,1735257051204,-773.29,0.00016791,2]
[346737755,1735257051214,-1394.96,0.00016791,2]
[346737756,1735257051225,-500.0,0.00016791,2]
[346737757,1735257051235,-173.400883,0.00016791,2]
[346737758,1735257051244,-173.400883,0.00016791,2]
[346737759,1735257051253,-612.0,0.00016792,2]
[346737760,1735257051263,-500.0,0.00016792,2]
[346737761,1735257051272,-560.6644373,0.00016792,2]
[346737762,1735257051282,-500.0,0.00016792,2]
[346737763,1735257051291,-500.0,0.00016792,2]
[346737764,1735257051300,-166.630106,0.00016792,2]
[346737765,1735257051310,-22.25039974,0.00016792,2]
[346737766,1735257051437,-144.37969826,0.00016792,2]
[346737767,1735257051447,-351.594105,0.00016792,2]
[346737768,1735257051457,-351.594112,0.00016792,2]
[346737769,1735257051466,-500.0,0.00016792,2]
[346737770,1735257051474,-173.400883,0.00016792,2]
[346737771,1735257051483,-173.400875,0.00016792,2]
[346737772,1735257051493,-500.0,0.00016792,2]
[346737773,1735257051503,-651.15,0.00016792,2]
[346737774,1735257051513,-151.0,0.00016792,2]
[346737775,1735257051522,-500.0,0.00016793,2]
[346737776,1735257051531,-500.0,0.00016793,2]
[346737777,1735257051541,-151.0,0.000168,2]
[346737778,1735257051550,-1000.0,0.00016821,2]
[346737779,1735257051559,-1113.68146426,0.00016821,2]
[346737780,1735257051569,-500.0,0.00016821,2]
[346737781,1735257051579,-500.0,0.00016821,2]
[346737782,1735257051588,-1000.0,0.00016821,2]
[346737783,1735257051597,-775.00329077,0.00016821,2]
[346737784,1735257051607,-256.0,0.0001687,2]
[346737785,1735257051616,-11319.74,0.0001687,2]
[346737786,1735257051626,-500.0,0.0001687,2]
[346737787,1735257051635,-516.78,0.0001687,2]
[346737788,1735257051644,-151.0,0.00016872,2]
[346737789,1735257051654,-151.0,0.00016872,2]
[346737790,1735257051663,-151.0,0.00016872,2]
[346737791,1735257051673,-263.164565,0.00016872,2]
[346737792,1735257051682,-263.164565,0.00016872,2]
[346737793,1735257051692,-151.0,0.00016872,2]
[346737794,1735257051701,-222.041612,0.00016872,2]
[346737795,1735257051711,-222.041612,0.00016872,2]
[346737796,1735257051721,-166.733138,0.00016872,2]
[346737797,1735257051730,-166.733138,0.00016872,2]
[346737798,1735257051740,-151.0,0.00016872,2]
[346737799,1735257051749,-283.708138,0.00016872,2]
[346737800,1735257051758,-151.0,0.00016872,2]
[346737801,1735257051768,-151.0,0.00016872,2]
[346737802,1735257051777,-8951.35,0.00016872,2]
[346737803,1735257051787,-325.50878934,0.00016923,2]
[346737804,1735257051797,-214.2328397,0.00016932,2]
[346737805,1735257051806,-214.2328397,0.00016932,2]
[346737806,1735257051815,-151.0,0.00017,2]
[346737807,1735257051824,-1192.0,0.00017,7]
[346737808,1735257051834,-500.0,0.00017012,2]
[346737809,1735257051843,-1212.15,0.00017012,2]
[346737810,1735257051853,-500.0,0.00017012,2]
[346737811,1735257051863,-500.0,0.00017013,2]
[346737812,1735257051873,-181.363904,0.00017024,2]
[346737813,1735257051882,-700.36,0.00017024,2]
[346737814,1735257051892,-500.0,0.00017024,2]
[346737815,1735257051901,-825.92,0.00017024,2]
[346737816,1735257051911,-263.164565,0.00017024,2]
[346737817,1735257051921,-263.164565,0.00017024,2]
[346737818,1735257051931,-151.369716,0.00017024,2]
[346737819,1735257051940,-1254.73,0.00017024,2]
[346737820,1735257051949,-222.041612,0.00017024,2]
[346737821,1735257051959,-222.04162,0.00017024,2]
[346737822,1735257051968,-500.0,0.00017024,2]
[346737823,1735257051977,-1089.72,0.00017024,2]
[346737824,1735257051986,-530.76,0.00017024,2]
[346737825,1735257051995,-166.733138,0.00017024,2]
[346737826,1735257052005,-166.733147,0.00017024,2]
[346737827,1735257052014,-500.0,0.00017024,2]
[346737828,1735257052024,-151.0,0.00017024,2]
[346737829,1735257052034,-151.0,0.00017024,2]
[346737830,1735257052043,-500.0,0.00017024,2]
[346737831,1735257052053,-1057.53,0.00017024,2]
[346737832,1735257052063,-795.49,0.00017024,2]
[346737833,1735257052072,-500.0,0.00017024,2]
[346737834,1735257052081,-514.98,0.00017024,2]
[346737835,1735257052091,-608.66,0.00017024,2]
[346737836,1735257052100,-515.21,0.00017024,2]
[346737837,1735257052110,-1460.35,0.00017024,2]
[346737838,1735257052119,-2557.38,0.00017024,2]
[346737839,1735257052128,-858.73,0.00017024,2]
[346737840,1735257052137,-500.0,0.00017024,2]
[346737841,1735257052147,-761.57,0.00017024,2]
[346737842,1735257052157,-1024.08,0.00017024,2]
[346737843,1735257052166,-1222.55,0.00017024,2]
[346737844,1735257052175,-1378.02,0.00017024,2]
[346737845,1735257052185,-32121.79,0.00017024,2]
[346737846,1735257052194,-151.0,0.00017024,2]
[346737847,1735257052203,-1345.48,0.00017024,2]
[346737848,1735257052213,-500.0,0.00017024,2]
[346737849,1735257052222,-642.05,0.00017024,2]
[346737850,1735257052232,-151.0,0.00017024,2]
[346737851,1735257052242,-807.26,0.00017024,2]
[346737852,1735257052251,-500.0,0.00017024,2]
[346737853,1735257052260,-151.0,0.00017024,2]
[346737854,1735257052270,-548.55,0.00017026,2]
[346737855,1735257052280,-7662.52,0.00017026,2]
[346737856,1735257052377,-5037.97,0.00017026,2]
[346737857,1735257052387,-1461.89,0.00017026,2]
[346737858,1735257052397,-840.18,0.00017026,2]
[346737859,1735257052407,-2485.59746049,0.00017046,2]
[346737860,1735257052420,-500.0,0.00017064,2]
[346737861,1735257052430,-500.0,0.00017064,2]
[346737862,1735257052439,-601.84,0.00017064,2]
[346737863,1735257052449,-1323.91,0.00017064,2]
[346737864,1735257052460,-879.78,0.00017064,2]
[346737865,1735257052470,-500.0,0.00017064,2]
[346737866,1735257052479,-1278.32,0.00017064,2]
[346737867,1735257052491,-753.38,0.00017064,2]
[346737868,1735257052502,-630.5,0.00017064,2]
[346737869,1735257052513,-500.0,0.00017064,2]
[346737870,1735257052525,-500.0,0.00017064,2]
[346737871,1735257052535,-619.68,0.00017064,2]
[346737872,1735257052544,-500.0,0.00017064,2]
[346737873,1735257052555,-500.0,0.00017064,2]
[346737874,1735257052565,-1729.64,0.00017064,2]
[346737875,1735257052575,-893.36,0.00017064,2]
[346737876,1735257052584,-2179.06460748,0.00017064,2]
[346737877,1735257053924,-338.05069064,0.00017064,2]
[346737878,1735257054324,-2362.20470188,0.00017064,2]
[346737879,1735257054333,-500.0,0.00017064,2]
[346737880,1735257054343,-698.60212134,0.00017064,2]
[346737881,1735257054355,-585.91690844,0.00017064,2]
[346737882,1735257054367,-15.08097022,0.00017064,2]
[346737883,1735257054377,-500.0,0.00017065,2]
[346737884,1735257054386,-59.39852396,0.00017065,2]
[346737885,1735257054397,-428.32949418,0.00017065,2]
[346737886,1735257054410,-52.98198186,0.00017065,2]
[346737887,1735257054423,-500.0,0.00017065,2]
[346737888,1735257054432,-386.03795814,0.00017065,2]
[346737889,1735257054443,-245.52165538,0.00017065,2]
[346737890,1735257054453,-500.0,0.00017065,2]
[346737891,1735257054462,-500.0,0.00017065,2]
[346737892,1735257054471,-500.0,0.00017065,2]
[346737893,1735257054481,-554.28,0.00017065,2]
[346737894,1735257054492,-500.0,0.00017065,2]
[346737895,1735257054502,-500.0,0.00017065,2]
[346737896,1735257054511,-500.0,0.00017065,2]
[346737897,1735257054521,-773.29,0.00017065,2]
[346737898,1735257054531,-1304.26597459,0.00017065,2]
[346737899,1735257054566,500.0,0.00015106,2]
[346737900,1735257054618,580.01325837,0.0001538,2]
[346737901,1735257066624,912.72,0.00014012,2]
[346737902,1735257066892,912.72,0.00014286,2]
[346737903,1735257067159,912.72,0.0001456,2]
[346737904,1735257067423,912.72,0.00014834,2]
[346737905,1735257067707,912.72,0.00015108,2]
[346737906,1735257068056,912.72,0.00015382,2]
[346737907,1735257070736,500.0,0.00013999,2]
[346737908,1735257070975,500.0,0.00014273,2]
[346737909,1735257071272,647.64,0.00014547,2]
[346737910,1735257075637,1598.36,0.00014012,2]
[346737911,1735257076264,1598.36,0.00014286,2]
[346737912,1735257076548,1598.36,0.0001456,2]
[346737913,1735257076815,1598.36,0.00014834,2]
[346737914,1735257077099,1598.36,0.00015108,2]
[346737915,1735257077349,1598.36,0.00015382,2]
[346737916,1735257084038,500.0,0.00014559,2]
[346737917,1735257084325,500.0,0.00014833,2]
[346737918,1735257084586,500.0,0.00015107,2]
[346737919,1735257084854,500.0,0.00015381,2]
[346737920,1735257095420,3831.26,0.00013998,2]
[346737921,1735257095706,3831.26,0.00014272,2]
[346737922,1735257096025,3831.26,0.00014546,2]
[346737923,1735257096298,3831.26,0.0001482,2]
[346737924,1735257096614,3831.26,0.00015094,2]
[346737925,1735257096915,3831.26,0.00015368,2]
[346737926,1735257112105,500.0,0.00014832,2]
[346737927,1735257112370,500.0,0.00015106,2]
[346737928,1735257112628,500.0,0.0001538,2]
[346737929,1735257115458,764.09,0.00014012,2]
[346737930,1735257115702,416.21106956,0.00014286,2]
[346737931,1735257115724,347.87893044,0.00014286,2]
[346737932,1735257115957,764.09,0.0001456,2]
[346737933,1735257116098,1049.99,0.00014833,2]
[346737934,1735257116198,764.09,0.00014834,2]
[346737935,1735257116282,500.0,0.00014832,2]
[346737936,1735257116476,764.09,0.00015108,2]
[346737937,1735257116541,500.0,0.00015106,2]
[346737938,1735257116883,1049.99,0.00015107,2]
[346737939,1735257121053,2518.99,0.00013998,2]
[346737940,1735257121220,2518.99,0.00014272,2]
[346737941,1735257121502,2518.99,0.00014546,2]
[346737942,1735257121793,2518.99,0.0001482,2]
[346737943,1735257122061,2518.99,0.00015094,2]
[346737944,1735257123201,500.0,0.00014559,2]
[346737945,1735257123483,500.0,0.00014833,2]
[346737946,1735257123838,500.0,0.00015107,2]
[346737947,1735257123877,500.0,0.00013999,2]
[346737948,1735257124782,500.0,0.00014273,2]
[346737949,1735257125546,861.26,0.00014012,2]
[346737950,1735257125703,500.0,0.00014547,2]
[346737951,1735257125809,861.26,0.00014286,2]
[346737952,1735257126115,861.26,0.0001456,2]
[346737953,1735257126374,500.0,0.00014821,2]
[346737954,1735257126405,861.26,0.00014834,2]
[346737955,1735257126693,861.26,0.00015108,2]
[346737956,1735257127023,500.0,0.00014012,2]
[346737957,1735257127145,500.0,0.00015095,2]
[346737958,1735257127539,500.0,0.00014286,2]
[346737959,1735257129309,500.0,0.0001456,2]
[346737960,1735257130009,242.7812564,0.00014834,2]
[346737961,1735257134615,285.76,0.00014832,2]
[346737962,1735257137310,11469.96685379,0.00014832,2]
[346737963,1735257455259,412.44,0.00013,10]
[346737964,1735257585667,158.78667457,0.00023,120]
[346737967,1735257751227,160.0,0.00022456,120]
[346737970,1735257941132,-600.0,0.0001331,2]
[346737971,1735257941153,-196.12717588,0.00013344,2]
[346737972,1735257941173,-287.32293055,0.00013699,2]
[346737973,1735258032088,-101.90826945,0.00013699,2]
[346737974,1735258032110,-227.92406451,0.00013718,2]
[346737975,1735258046147,-3447.06539493,0.00013581,2]
[346737976,1735258046172,-8271.27065109,0.00013718,2]
[346737977,1735258046196,-742.71586634,0.00013897,2]
[346737978,1735258046220,-300.0,0.00013898,2]
[346737979,1735258046245,-300.0,0.00013898,2]
[346737980,1735258046268,-2119.06667989,0.00013899,2]
[346737981,1735258046294,-500.0,0.00013973,2]
[346737982,1735258046318,-400.0,0.00013973,2]
[346737983,1735258046342,-151.0,0.00013991,2]
[346737984,1735258046365,-1002.55704866,0.00013996,2]
[346737985,1735258046389,-455.06139883,0.00013996,2]
[346737986,1735258046415,-380.07820586,0.00013996,2]
[346737987,1735258046439,-500.0,0.00013996,2]
[346737988,1735258046463,-500.0,0.00013996,2]
[346737989,1735258046487,-414.7628653,0.00013996,2]
[346737990,1735258046512,-500.0,0.00013996,2]
[346737991,1735258046535,-500.0,0.00013996,2]
[346737992,1735258046562,-500.0,0.00013996,2]
[346737993,1735258046589,-500.0,0.00013996,2]
[346737994,1735258046613,-515.34055166,0.00013996,2]
[346737995,1735258046637,-1197.49,0.00013996,2]
[346737996,1735258046661,-500.0,0.00013996,2]
[346737997,1735258046685,-500.0,0.00013996,2]
[346737998,1735258046709,-500.0,0.00013997,2]
[346737999,1735258046731,-500.0,0.00013997,2]
[346738000,1735258046754,-500.0,0.00013997,2]